fUSD/lending_fUSD_20251128
["ID","MTS","AMOUNT","RATE_DAILY","PERIOD"]
[395017355,1764337834056,-150.0,0.00016986,2]
[395017356,1764337834065,-150.0,0.00016986,2]
[395017357,1764337834074,-156.90510009,0.00016986,2]
[395017358,1764337834083,-155.81404629,0.00016986,2]
[395017359,1764337834092,-232.97251994,0.00016986,2]
[395017360,1764337834101,-151.0,0.00016997,2]
[395017361,1764337834111,-332.62709138,0.00016999,2]
[395017362,1764337834120,-500.0,0.00016999,2]
[395017363,1764337834130,-500.0,0.00016999,2]
[395017364,1764337834139,-500.0,0.00016999,2]
[395017365,1764337834148,-500.0,0.00016999,2]
[395017366,1764337834157,-500.0,0.00016999,2]
[395017367,1764337834166,-500.0,0.00016999,2]
[395017368,1764337834175,-500.0,0.00016999,2]
[395017369,1764337834184,-500.0,0.00016999,2]
[395017370,1764337834193,-543.63380604,0.00016999,2]
[395017371,1764337834202,-500.0,0.00016999,2]
[395017372,1764337834211,-500.0,0.00016999,2]
[395017373,1764337834220,-227.07454111,0.00016999,2]
[395017374,1764337834229,-500.0,0.00016999,2]
[395017375,1764337834239,-500.0,0.00016999,2]
[395017376,1764337834248,-500.0,0.00016999,2]
[395017377,1764337834256,-500.0,0.00016999,2]
[395017378,1764337834266,-500.0,0.00016999,2]
[395017379,1764337834276,-500.0,0.00016999,2]
[395017380,1764337834285,-500.0,0.00016999,2]
[395017381,1764337834294,-500.0,0.00016999,2]
[395017382,1764337834303,-500.0,0.00016999,2]
[395017383,1764337834312,-500.0,0.00016999,2]
[395017384,1764337834321,-143.61132573,0.00016999,2]
[395017385,1764337834343,-356.38867427,0.00016999,2]
[395017386,1764337834352,-500.0,0.00016999,2]
[395017387,1764337834362,-163.40702457,0.00016999,2]
[395017388,1764337834371,-500.0,0.00016999,2]
[395017389,1764337834380,-500.0,0.00016999,2]
[395017390,1764337834390,-500.0,0.00016999,2]
[395017391,1764337834399,-231.64720255,0.00016999,2]
[395017392,1764337834408,-500.0,0.00016999,2]
[395017393,1764337834417,-97.89197926,0.00016999,2]
[395017394,1764337834428,-412.8619356,0.00016999,2]
[395017395,1764337834437,-500.0,0.00016999,2]
[395017396,1764337834447,-500.0,0.00016999,2]
[395017397,1764337834456,-141.28419941,0.00016999,2]
[395017398,1764337834467,-358.71580059,0.00016999,2]
[395017399,1764337834476,-500.0,0.00016999,2]
[395017400,1764337834485,-91.54966135,0.00016999,2]
[395017401,1764337834496,-408.45033865,0.00016999,2]
[395017402,1764337834506,-500.0,0.00016999,2]
[395017403,1764337834515,-500.0,0.00016999,2]
[395017404,1764337834524,-500.0,0.00016999,2]
[395017405,1764337834533,-500.0,0.00016999,2]
[395017406,1764337834542,-500.0,0.00016999,2]
[395017407,1764337834551,-515.50012945,0.00016999,2]
[395017408,1764337834560,-504.54484366,0.00016999,2]
[395017409,1764337834569,-176.15449863,0.00016999,2]
[395017410,1764337834581,-323.84550137,0.00016999,2]
[395017411,1764337834590,-182.40788065,0.00016999,2]
[395017412,1764337834599,-448.43726017,0.00016999,2]
[395017413,1764337834611,-500.0,0.00016999,2]
[395017414,1764337834620,-500.0,0.00016999,2]
[395017415,1764337834630,-500.0,0.00016999,2]
[395017416,1764337834639,-500.0,0.00016999,2]
[395017417,1764337834649,-500.0,0.00016999,2]
[395017418,1764337834658,-500.0,0.00016999,2]
[395017419,1764337834667,-150.0,0.00016999,2]
[395017420,1764337834677,-106771.98237183,0.00017,2]
[395017421,1764337834689,-390.37271931,0.00017,2]
[395017422,1764337838144,-95543.52815245,0.00017,2]
[395017423,1764337838239,-13747.96828321,0.00017,2]
[395017424,1764337838253,-5739.18585998,0.00017,2]
[395017425,1764337838266,-28057.1412,0.00017,2]
[395017426,1764337838296,-138392.50000001,0.00017,2]
[395017452,1764337840242,-533.48447,0.00017,2]
[395017453,1764337840299,-12975.28634251,0.00017,2]
[395017454,1764337840357,-64609.79429862,0.00017,2]
[395017455,1764337840523,-1725.12,0.00017,2]
[395017456,1764337840535,-18406.93211956,0.00017,2]
[395017458,1764337843195,-406.49495038,0.000159,2]
[395017459,1764337843205,-514.64414116,0.00017,2]
[395017460,1764337843217,-965.8529632,0.00017,2]
[395017461,1764337843228,-267.5045,0.00017,2]
[395017466,1764337843634,-309.13436836,0.00017,2]
[395017467,1764337843894,-438.0,0.00017,2]
[395017494,1764337846901,-60322.08903079,0.00017,2]
[395017497,1764337846912,-358.8,0.00017,2]
[395017499,1764337846923,-1758.27703505,0.00017,2]
[395017501,1764337846934,-1081.75005,0.00017,2]
[395018444,1764338030415,166.45,0.00019944,30]
[395018445,1764338343351,222.0,9.989e-05,2]
[395018446,1764338343498,222.0,9.989e-05,2]
[395018447,1764338343974,222.0,9.989e-05,2]
[395018448,1764338344257,222.0,9.989e-05,2]
[395018449,1764338344634,222.0,9.989e-05,2]
[395018450,1764338344939,201.71066573,9.989e-05,2]
[395018451,1764338344963,20.28933427,9.989e-05,2]
[395018452,1764338345238,222.0,9.989e-05,2]
[395018453,1764338345718,222.0,9.989e-05,2]
[395018454,1764338345891,222.0,9.989e-05,2]
[395018455,1764338347387,250.0,0.00010988,2]
[395018458,1764338936636,225.41,0.00025,120]
[395018459,1764339025700,536.0,0.00024225,120]
[395018469,1764339031640,-164.69709973,0.00015187,2]
[395018471,1764339031650,-300.0,0.00015287,2]
[395018473,1764339031659,-300.0,0.00015287,2]
[395018475,1764339031669,-1200.0,0.00015287,2]
[395018477,1764339031678,-215.0,0.00015287,2]
[395018479,1764339031687,-150.0,0.00015288,2]
[395018481,1764339031696,-150.0,0.00015288,2]
[395018483,1764339031705,-150.0,0.00015288,2]
[395018486,1764339031714,-296.30908425,0.00015288,2]
[395018488,1764339031723,-150.0,0.00015288,2]
[395018490,1764339031732,-150.0,0.00015288,2]
[395018492,1764339031741,-150.0,0.00015288,2]
[395018495,1764339031751,-150.0,0.00015288,2]
[395018498,1764339031761,-150.0,0.00015288,2]
[395018501,1764339031771,-166.66,0.00015531,2]
[395018504,1764339031779,-150.0,0.00015571,2]
[395018507,1764339031788,-150.0,0.00015854,2]
[395018510,1764339031798,-150.0,0.00015854,2]
[395018513,1764339031807,-150.0,0.00015854,2]
[395018516,1764339031816,-166.66,0.00015858,2]
[395018519,1764339031826,-483.47,0.00015992,2]
[395018522,1764339031836,-150.0,0.00016137,2]
[395018525,1764339031845,-150.0,0.00016137,2]
[395018528,1764339031853,-150.0,0.00016137,2]
[395018531,1764339031863,-150.0,0.00016137,2]
[395018534,1764339031873,-166.66,0.00016185,2]
[395018537,1764339031886,-150.0,0.0001642,2]
[395018540,1764339031895,-150.0,0.0001642,2]
[395018543,1764339031904,-150.0,0.0001642,2]
[395018545,1764339031913,-166.66,0.00016512,2]
[395018547,1764339031922,-180.805,0.0001656,2]
[395018548,1764339031931,-160.0,0.00016649,2]
[395018550,1764339031940,-151.0,0.0001665,2]
[395018552,1764339031949,-500.0,0.0001665,2]
[395018554,1764339031959,-500.0,0.0001665,2]
[395018556,1764339031968,-500.0,0.0001665,2]
[395018558,1764339031978,-200.0,0.0001665,2]
[395018560,1764339031987,-500.0,0.0001665,2]
[395018562,1764339031996,-500.0,0.0001665,2]
[395018564,1764339032005,-500.0,0.0001665,2]
[395018566,1764339032014,-500.0,0.0001665,2]
[395018568,1764339032027,-500.0,0.0001665,2]
[395018570,1764339032035,-151.0,0.0001665,2]
[395018572,1764339032044,-500.0,0.0001665,2]
[395018574,1764339032053,-500.0,0.0001665,2]
[395018576,1764339032062,-151.0,0.0001665,2]
[395018578,1764339032071,-500.0,0.0001665,2]
[395018580,1764339032080,-500.0,0.0001665,2]
[395018582,1764339032089,-151.0,0.0001665,2]
[395018584,1764339032099,-500.0,0.0001665,2]
[395018586,1764339032108,-500.0,0.0001665,2]
[395018588,1764339032117,-151.0,0.0001665,2]
[395018590,1764339032126,-500.0,0.0001665,2]
[395018592,1764339032138,-500.0,0.0001665,2]
[395018594,1764339032147,-151.0,0.0001665,2]
[395018596,1764339032156,-500.0,0.0001665,2]
[395018598,1764339032165,-151.0,0.0001665,2]
[395018600,1764339032174,-500.0,0.0001665,2]
[395018602,1764339032183,-151.0,0.0001665,2]
[395018604,1764339032192,-500.0,0.0001665,2]
[395018605,1764339032201,-500.0,0.0001665,2]
[395018607,1764339032210,-500.0,0.0001665,2]
[395018609,1764339032219,-151.0,0.0001665,2]
[395018611,1764339032228,-500.0,0.0001665,2]
[395018613,1764339032237,-500.0,0.0001665,2]
[395018615,1764339032246,-151.0,0.0001665,2]
[395018617,1764339032255,-500.0,0.0001665,2]
[395018619,1764339032267,-151.0,0.0001665,2]
[395018622,1764339032278,-151.0,0.0001665,2]
[395018623,1764339032288,-188.37894867,0.0001665,2]
[395018625,1764339032297,-151.0,0.0001665,2]
[395018628,1764339032307,-151.0,0.0001665,2]
[395018629,1764339032317,-151.0,0.0001665,2]
[395018631,1764339032326,-200.0,0.0001665,2]
[395018633,1764339032335,-200.0,0.0001665,2]
[395018635,1764339032344,-151.0,0.00016657,2]
[395018637,1764339032355,-756.55,0.0001666,2]
[395018639,1764339032365,-500.0,0.0001666,2]
[395018641,1764339032374,-500.0,0.0001666,2]
[395018642,1764339032392,-500.0,0.0001666,2]
[395018643,1764339032401,-500.0,0.0001666,2]
[395018644,1764339032411,-500.0,0.0001666,2]
[395018645,1764339032420,-500.0,0.0001666,2]
[395018646,1764339032430,-500.0,0.0001666,2]
[395018647,1764339032439,-500.0,0.0001666,2]
[395018648,1764339032449,-500.0,0.0001666,2]
[395018649,1764339032459,-500.0,0.0001666,2]
[395018650,1764339032469,-500.0,0.0001666,2]
[395018651,1764339032478,-500.0,0.0001666,2]
[395018652,1764339032488,-500.0,0.0001666,2]
[395018653,1764339032497,-500.0,0.0001666,2]
[395018654,1764339032507,-500.0,0.0001666,2]
[395018655,1764339032517,-500.0,0.0001666,2]
[395018656,1764339032526,-500.0,0.0001666,2]
[395018657,1764339032537,-500.0,0.0001666,2]
[395018658,1764339032546,-500.0,0.0001666,2]
[395018659,1764339032555,-500.0,0.0001666,2]
[395018660,1764339032565,-500.0,0.0001666,2]
[395018661,1764339032574,-500.0,0.0001666,2]
[395018662,1764339032584,-500.0,0.0001666,2]
[395018663,1764339032594,-500.0,0.0001666,2]
[395018664,1764339032604,-500.0,0.0001666,2]
[395018665,1764339032614,-500.0,0.0001666,2]
[395018666,1764339032624,-500.0,0.0001666,2]
[395018668,1764339032640,-500.0,0.0001666,2]
[395018670,1764339032650,-500.0,0.0001666,2]
[395018672,1764339032660,-500.0,0.0001666,2]
[395018674,1764339032669,-500.0,0.0001666,2]
[395018675,1764339032679,-500.0,0.0001666,2]
[395018677,1764339032688,-500.0,0.0001666,2]
[395018679,1764339032698,-500.0,0.0001666,2]
[395018682,1764339032707,-500.0,0.0001666,2]
[395018684,1764339032717,-500.0,0.0001666,2]
[395018685,1764339032726,-500.0,0.0001666,2]
[395018686,1764339032735,-500.0,0.0001666,2]
[395018687,1764339032744,-500.0,0.0001666,2]
[395018688,1764339032753,-500.0,0.0001666,2]
[395018689,1764339032762,-500.0,0.0001666,2]
[395018690,1764339032771,-500.0,0.0001666,2]
[395018691,1764339032779,-500.0,0.0001666,2]
[395018692,1764339032790,-150.0,0.00016703,2]
[395018693,1764339032799,-420.0,0.00016726,2]
[395018694,1764339032808,-420.0,0.00016726,2]
[395018695,1764339032817,-425.3574,0.00016752,2]
[395018696,1764339032826,-829.0,0.0001681,2]
[395018697,1764339032835,-195.0,0.00016816,2]
[395018698,1764339032844,-166.66,0.00016839,2]
[395018699,1764339032853,-1441.39850181,0.00016898,2]
[395018700,1764339032862,-377.12348567,0.00016899,2]
[395018701,1764339032871,-377.12348561,0.00016899,2]
[395018702,1764339032881,-377.12348561,0.00016899,2]
[395018703,1764339032890,-377.12348561,0.00016899,2]
[395018704,1764339032899,-377.12348561,0.00016899,2]
[395018705,1764339032910,-377.12348561,0.000169,2]
[395018706,1764339032919,-377.12348561,0.000169,2]
[395018707,1764339032928,-377.12348561,0.000169,2]
[395018708,1764339032937,-377.12348561,0.000169,2]
[395018709,1764339032947,-167.84750742,0.000169,2]
[395018710,1764339032955,-159.18230908,0.000169,2]
[395018711,1764339032965,-377.12348561,0.000169,2]
[395018712,1764339032974,-159.65798919,0.000169,2]
[395018713,1764339032982,-5821.25770105,0.000169,2]
[395018714,1764339032991,-496.98124398,0.000169,2]
[395018715,1764339033001,-164.53491855,0.000169,2]
[395018716,1764339033010,-4907.08792091,0.0001692,2]
[395018717,1764339033019,-732.27251679,0.00016934,2]
[395018718,1764339033046,-24.27748321,0.00016934,2]
[395018719,1764339033055,-151.0,0.00016956,2]
[395018720,1764339033064,-350.0,0.00016958,2]
[395018721,1764339033073,-220.31683196,0.00016958,2]
[395018722,1764339033082,-154.37099124,0.00016958,2]
[395018723,1764339033091,-33.13844359,0.00016958,2]
[395018724,1764339033102,-466.86155641,0.00016958,2]
[395018725,1764339033111,-379.19419492,0.00016958,2]
[395018726,1764339033120,-3956.59424867,0.00016959,2]
[395018727,1764339033175,-8799.04465491,0.00016959,2]
[395018728,1764339033224,-1005.98317771,0.00016959,2]
[395018732,1764339037539,-2193.578375,0.00016959,2]
[395018735,1764339037562,-11814.76384738,0.00016959,2]
[395018736,1764339037592,-960.35,0.00016959,2]
[395018741,1764339039433,-10166.5681826,0.00016959,2]
[395018742,1764339039446,-11710.31536572,0.00016959,2]
[395018743,1764339039507,-1896.80214801,0.00016959,2]
[395018744,1764339039517,-500.0,0.00016973,2]
[395018745,1764339039528,-500.0,0.00016973,2]
[395018746,1764339039537,-340.11649201,0.00016973,2]
[395018748,1764339040420,-161.00939863,0.00016973,2]
[395018749,1764339040430,-172.09138207,0.00016973,2]
[395018750,1764339040439,-157.2860755,0.00016973,2]
[395018751,1764339040448,-391.53224932,0.00016973,2]
[395018752,1764339040458,-500.0,0.00016973,2]
[395018753,1764339040467,-254.067164,0.00016973,2]
[395018754,1764339040478,-107.29103826,0.00016973,2]
[395018755,1764339040487,-500.0,0.00016973,2]
[395018756,1764339040497,-500.0,0.00016973,2]
[395018757,1764339040506,-314.47474459,0.00016975,2]
[395018758,1764339040564,-4614.0574029,0.00016975,2]
[395018759,1764339040575,-1387.8363708,0.00016975,2]
[395018760,1764339040636,-11327.90525561,0.00016975,2]
[395018761,1764339040646,-5496.6455327,0.0001698,2]
[395018762,1764339040655,-247.83814987,0.00016986,2]
[395018763,1764339040665,-150.0,0.00016986,2]
[395018764,1764339040674,-152.61401388,0.00016986,2]
[395018765,1764339040685,-150.0,0.00016986,2]
[395018766,1764339040694,-150.0,0.00016986,2]
[395018767,1764339040703,-150.0,0.00016986,2]
[395018768,1764339040713,-152.22579764,0.00016986,2]
[395018769,1764339040723,-150.0,0.00016986,2]
[395018770,1764339040732,-98921.7705384,0.00016999,2]
[395018771,1764339040743,-3429.9439431,0.00016999,2]
[395018772,1764339040751,-500.0,0.00016999,2]
[395018773,1764339040761,-500.0,0.00016999,2]
[395018774,1764339040771,-500.0,0.00016999,2]
[395018775,1764339040780,-500.0,0.00016999,2]
[395018776,1764339040789,-546.26985546,0.00016999,2]
[395018777,1764339040799,-500.0,0.00016999,2]
[395018778,1764339040808,-507.06907365,0.00016999,2]
[395018779,1764339040817,-771.358057,0.00016999,2]
[395018780,1764339040826,-771.358057,0.00016999,2]
[395018781,1764339040836,-771.358057,0.00016999,2]
[395018782,1764339040845,-771.358057,0.00016999,2]
[395018783,1764339040854,-151.0,0.00016999,2]
[395018784,1764339040864,-151.0,0.00016999,2]
[395018785,1764339040873,-151.0,0.00016999,2]
[395018786,1764339040882,-437.303843,0.00016999,2]
[395018787,1764339040891,-437.303843,0.00016999,2]
[395018788,1764339040901,-437.303843,0.00016999,2]
[395018789,1764339040910,-437.303843,0.00016999,2]
[395018790,1764339040920,-174.581795,0.00016999,2]
[395018791,1764339040931,-174.581795,0.00016999,2]
[395018792,1764339040943,-174.581795,0.00016999,2]
[395018793,1764339040953,-174.581795,0.00016999,2]
[395018794,1764339040963,-140875.06253182,0.00017,2]
[395018795,1764339040974,-530.6,0.00017,2]
[395018806,1764339042666,-922.84192,0.00017,2]
[395018807,1764339042832,-867.26068256,0.00017,2]
[395018808,1764339042844,-1128.1501817,0.00017,2]
[395018812,1764339045460,-387534.8464211,0.00017,2]
[395018813,1764339045609,-3432.75999946,0.00017,2]
[395018829,1764339752687,183.99,0.00012755,2]
[395018830,1764339953548,3962.74698983,0.000146,2]
[395018831,1764339953576,5083.0263241,0.000146,2]
[395018832,1764339953599,5083.0263241,0.000146,2]
[395018833,1764339953624,5083.0263241,0.000146,2]
[395018834,1764339953650,5083.0263241,0.000146,2]
[395018835,1764339953674,5083.0263241,0.000146,2]
[395018836,1764339953697,5083.0263241,0.000146,2]
[395018837,1764339953726,6583.5972091,0.000146,2]
[395018847,1764340231516,-366.13195705,0.00014999,2]
[395018849,1764340231527,-592.6208087,0.00014999,2]
[395018851,1764340231539,-154.7383645,0.00014999,2]
[395018853,1764340231549,-1200.0,0.00014999,2]
[395018855,1764340231561,-2034.85776447,0.00015,2]
[395018857,1764340231571,-267.23282739,0.00015,2]
[395018859,1764340231597,-1946.07930933,0.00015,2]
[395018860,1764340231607,-300.0,0.00015287,2]
[395018861,1764340231616,-158.93622439,0.00015288,2]
[395018862,1764340231626,-157.84068384,0.00015288,2]
[395018863,1764340231636,-812.59,0.000153,2]
[395018864,1764340231645,-1200.0,0.00015399,2]
[395018865,1764340231659,-11855.53892545,0.000154,2]
[395018866,1764340231668,-504.40194117,0.000154,2]
[395018867,1764340231677,-1054.49,0.00015604,2]
[395018868,1764340231686,-256.23,0.00015633,2]
[395018869,1764340231697,-333.26357181,0.000159,2]
[395018870,1764340231706,-150.0,0.00015943,2]
[395018871,1764340231716,-300.0,0.00015969,2]
[395018872,1764340231725,-3385.0133018,0.0001597,2]
[395018873,1764340231761,-553.0612838,0.0001597,2]
[395018874,1764340231772,-4646.08598,0.0001597,2]
[395018875,1764340231803,-639.18954321,0.0001597,2]
[395018876,1764340231820,-543.98998276,0.0001597,2]
[395018878,1764340231832,-4900.38990843,0.0001597,2]
[395018880,1764340231841,-182.44772077,0.00016,2]
[395018882,1764340231850,-7227.81628517,0.00016,4]
[395018883,1764340231859,-200.0,0.00016045,2]
[395018885,1764340231870,-333.26357181,0.00016161,2]
[395018887,1764340231879,-5000.0,0.000162,5]
[395018889,1764340231889,-923.03467558,0.00016253,2]
[395018891,1764340231899,-2751.0,0.00016273,2]
[395018893,1764340231908,-10769.64,0.00016373,2]
[395018895,1764340231917,-333.26357181,0.00016486,2]
[395018897,1764340231926,-194.55010423,0.00016499,2]
[395018899,1764340231935,-263.27950744,0.00016499,2]
[395018901,1764340231945,-250.0,0.00016499,2]
[395018903,1764340231954,-195.0,0.00016499,2]
[395018905,1764340231963,-1151.0,0.00016499,2]
[395018907,1764340231972,-500.0,0.00016573,2]
[395018909,1764340231981,-501.0656298,0.00016573,2]
[395018911,1764340231990,-500.0,0.00016573,2]
[395018913,1764340231999,-500.0,0.00016573,2]
[395018915,1764340232008,-410.23190859,0.00016585,2]
[395018917,1764340232017,-186.81935797,0.00016585,2]
[395018919,1764340232026,-500.0,0.00016585,2]
[395018921,1764340232035,-9999.99,0.00016586,2]
[395018923,1764340232044,-9999.99,0.00016586,2]
[395018925,1764340232053,-9999.99,0.00016586,2]
[395018927,1764340232066,-150.99,0.00016586,2]
[395018929,1764340232076,-8183.88,0.00016586,2]
[395018931,1764340232085,-18857.62,0.00016586,2]
[395018933,1764340232094,-1288.42,0.00016586,2]
[395018935,1764340232103,-150.99,0.00016586,2]
[395018956,1764340232290,-383.0,0.00016726,2]
[395018958,1764340232300,-3210.16372,0.0001683,2]
[395018960,1764340232313,-500.84139495,0.00016873,2]
[395018962,1764340232322,-501.96272844,0.00016873,2]
[395018964,1764340232332,-501.56548682,0.00016873,2]
[395018966,1764340232341,-504.18743369,0.00016873,2]
[395018968,1764340232351,-501.13898668,0.00016873,2]
[395018970,1764340232361,-481.45079703,0.00016873,2]
[395018972,1764340232370,-160.5240319,0.00016873,2]
[395018974,1764340232379,-500.0,0.00016873,2]
[395018976,1764340232389,-501.2468057,0.00016873,2]
[395018978,1764340232399,-504.07492214,0.00016873,2]
[395018980,1764340232408,-538.53917609,0.00016873,2]
[395018982,1764340232417,-502.75122359,0.00016873,2]
[395018984,1764340232427,-161.05731666,0.00016873,2]
[395018986,1764340232436,-505.12290168,0.00016873,2]
[395018988,1764340232445,-505.5313009,0.00016873,2]
[395018990,1764340232454,-164.2685499,0.00016873,2]
[395018992,1764340232463,-151.0,0.00016889,2]
[395018994,1764340232473,-299.99,0.00016899,4]
[395018996,1764340232483,-1991.14,0.00016899,2]
[395018998,1764340232492,-999.99,0.00016899,2]
[395019000,1764340232503,-902.7138175,0.00016899,2]
[395019002,1764340232512,-1727.82,0.00016899,2]
[395019004,1764340232521,-52.84426086,0.00016899,2]
[395019007,1764340232552,-700.36150344,0.00016899,2]
[395019013,1764340237536,-500.0,0.00016573,2]
[395019014,1764340237547,-500.0,0.00016573,2]
[395019015,1764340237557,-500.0,0.00016573,2]
[395019016,1764340237568,-500.0,0.00016573,2]
[395019017,1764340237578,-502.19696471,0.00016873,2]
[395019018,1764340237588,-3233.6742357,0.00016899,2]
[395019019,1764340237598,-7136.00496872,0.00016899,2]
[395019020,1764340237608,-3362.43349081,0.000169,2]
[395019021,1764340237620,-3773.57147791,0.000169,2]
[395019022,1764340237630,-7136.00496872,0.000169,2]
[395019023,1764340237640,-7136.00496872,0.000169,2]
[395019024,1764340237653,-7136.00496872,0.000169,2]
[395019025,1764340237663,-157.06603691,0.000169,2]
[395019026,1764340237672,-164.00272964,0.000169,2]
[395019027,1764340237681,-7136.00496872,0.000169,2]
[395019028,1764340237691,-331.32082932,0.000169,2]
[395019029,1764340237701,-467.95741339,0.00016961,2]
[395019030,1764340237711,-200.0,0.00016962,2]
[395019031,1764340237721,-500.0,0.00016962,2]
[395019032,1764340237731,-500.0,0.00016962,2]
[395019033,1764340237744,-500.0,0.00016962,2]
[395019034,1764340237754,-500.0,0.00016962,2]
[395019035,1764340237764,-500.0,0.00016962,2]
[395019036,1764340237773,-500.0,0.00016962,2]
[395019037,1764340237783,-500.0,0.00016962,2]
[395019038,1764340237793,-500.0,0.00016962,2]
[395019039,1764340237803,-500.0,0.00016962,2]
[395019040,1764340237832,-500.0,0.00016962,2]
[395019041,1764340237850,-500.0,0.00016962,2]
[395019042,1764340237873,-500.0,0.00016962,2]
[395019043,1764340237895,-500.0,0.00016962,2]
[395019044,1764340237913,-500.0,0.00016962,2]
[395019045,1764340237934,-500.0,0.00016962,2]
[395019046,1764340237954,-500.0,0.00016962,2]
[395019047,1764340237973,-500.0,0.00016962,2]
[395019048,1764340237994,-500.0,0.00016962,2]
[395019049,1764340238012,-500.0,0.00016962,2]
[395019050,1764340238037,-500.0,0.00016962,2]
[395019051,1764340238052,-500.0,0.00016962,2]
[395019052,1764340238073,-500.0,0.00016962,2]
[395019053,1764340238088,-500.0,0.00016962,2]
[395019054,1764340238105,-500.0,0.00016962,2]
[395019055,1764340238123,-500.0,0.00016962,2]
[395019056,1764340238148,-500.0,0.00016962,2]
[395019057,1764340238165,-500.0,0.00016962,2]
[395019058,1764340238184,-500.0,0.00016962,2]
[395019059,1764340238201,-151.0,0.00016962,2]
[395019060,1764340238218,-151.0,0.00016962,2]
[395019061,1764340238236,-151.0,0.00016962,2]
[395019062,1764340238254,-151.0,0.00016962,2]
[395019063,1764340238271,-200.0,0.00016962,2]
[395019064,1764340238289,-151.0,0.00016962,2]
[395019065,1764340238306,-200.0,0.00016962,2]
[395019066,1764340238326,-151.0,0.00016962,2]
[395019067,1764340238344,-151.0,0.00016962,2]
[395019068,1764340238362,-151.0,0.00016962,2]
[395019069,1764340238378,-151.0,0.00016962,2]
[395019070,1764340238395,-151.0,0.00016962,2]
[395019071,1764340238411,-151.0,0.00016962,2]
[395019072,1764340238428,-151.0,0.00016962,2]
[395019073,1764340238444,-151.0,0.00016962,2]
[395019074,1764340238460,-151.0,0.00016962,2]
[395019075,1764340238477,-507.35080236,0.00016973,2]
[395019076,1764340238493,-174.22388183,0.00016973,2]
[395019077,1764340238510,-500.0,0.00016973,2]
[395019078,1764340238525,-501.51517084,0.00016973,2]
[395019079,1764340238540,-500.0,0.00016973,2]
[395019080,1764340238555,-500.0,0.00016973,2]
[395019081,1764340238574,-820.48,0.00016973,2]
[395019082,1764340238590,-153.48713579,0.00016973,2]
[395019083,1764340238608,-151.11202644,0.00016973,2]
[395019084,1764340238625,-150.0,0.00016973,2]
[395019085,1764340238642,-157.14527491,0.00016973,2]
[395019086,1764340238664,-150.0,0.00016973,2]
[395019087,1764340238681,-150.0,0.00016973,2]
[395019088,1764340238698,-152.12647697,0.00016973,2]
[395019089,1764340238715,-151.73896267,0.00016973,2]
[395019090,1764340238731,-153.27447382,0.00016973,2]
[395019091,1764340238749,-151.28640431,0.00016973,2]
[395019092,1764340238766,-150.0,0.00016973,2]
[395019093,1764340238782,-500.0,0.00016973,2]
[395019094,1764340238799,-150.0,0.00016973,2]
[395019095,1764340238815,-500.0,0.00016973,2]
[395019096,1764340238831,-150.0,0.00016973,2]
[395019097,1764340238847,-154.94590911,0.00016973,2]
[395019098,1764340238863,-150.0,0.00016973,2]
[395019099,1764340238880,-500.0,0.00016973,2]
[395019100,1764340238904,-500.0,0.00016973,2]
[395019101,1764340238927,-150.0,0.00016973,2]
[395019102,1764340238949,-500.0,0.00016973,2]
[395019103,1764340238973,-150.0,0.00016973,2]